bitfinex-derivatives/quotes_ETHF0:USTF0_20250910
["timestamp","ask_amount","ask_price","bid_price","bid_amount"]
[1757542882278,0.6962,4350.3,4350.2,0.9631]
[1757542885677,1.10985,4350.3,4350.2,0.4315]
[1757542885872,1.10985,4350.3,4350.2,0.7488]
[1757542886368,1.10985,4350.3,4350.2,0.9631]
[1757542887891,1.10985,4350.3,4350.2,0.231]
[1757542888091,1.10985,4350.3,4350.2,0.4323]
[1757542888590,1.10985,4350.3,4350.2,0.231]
[1757542890686,1.10985,4350.3,4350.1,0.04000237]
[1757542890891,1.10985,4350.3,4350.2,0.231]
[1757542901493,1.13579,4349.9,4349.8,0.5021]
[1757542901691,0.7221,4349.9,4349.8,0.9414]
[1757542903900,1.13578,4349.9,4349.8,0.9414]
[1757542904293,0.7221,4349.9,4349.8,0.9414]
[1757542910101,0.82608,4349.9,4349.8,0.2013]
[1757542910307,0.7221,4349.9,4349.8,0.7331]
[1757542910804,1.13578,4349.9,4349.8,0.4323]
[1757542911707,1.13578,4349.9,4349.8,0.231]
[1757542912408,1.13578,4349.9,4349.8,0.4323]
[1757542912611,1.13578,4349.9,4349.8,0.231]
[1757542913109,0.7221,4349.9,4349.8,0.4323]
[1757542913405,0.7221,4349.9,4349.8,0.231]
[1757542918515,0.7221,4349.9,4349.8,0.4385]
[1757542919319,0.7221,4349.9,4349.8,0.7448]
[1757542919915,0.7221,4349.9,4349.8,0.4385]
[1757542920813,0.7221,4349.9,4349.8,0.9452]
[1757542922015,0.7221,4349.9,4349.8,1.35889]
[1757542923619,0.7221,4349.9,4349.8,0.9452]
[1757542924314,0.7221,4349.9,4349.8,0.4385]
[1757542924622,1.13578,4349.9,4349.8,0.231]
[1757542924822,0.7221,4349.9,4349.8,0.231]
[1757542926123,0.7221,4349.9,4349.8,0.4385]
[1757542926421,0.7221,4349.9,4349.8,0.7448]
[1757542930426,0.7221,4349.9,4349.8,0.4385]
[1757542930619,1.13578,4349.9,4349.8,0.231]
[1757542931519,0.7292,4349.4,4349.3,1.12794]
[1757542931725,0.7292,4349.4,4349.3,0.9452]
[1757542931930,0.7292,4349.4,4349.3,1.35894]
[1757542932123,0.7292,4349.4,4349.3,0.5138]
[1757542932426,0.7292,4349.4,4349.3,0.7142]
[1757542932627,0.7292,4349.4,4349.0,0.64476]
[1757542932824,0.1188,4349.5,4349.0,0.95106]
[1757542933024,0.7292,4349.1,4349.0,1.15856]
[1757542933330,0.7292,4349.1,4349.0,1.35896]
[1757542934819,0.5243,4349.1,4349.0,1.48096]
[1757542935016,0.5407,4349.5,4349.4,0.2075]
[1757542935219,0.5407,4349.5,4349.4,0.4385]
[1757542935430,0.848,4349.5,4349.4,0.4385]
[1757542935724,0.848,4349.5,4349.4,0.231]
[1757542935922,1.26177,4349.0,4348.9,0.231]
[1757542936126,0.4219,4348.2,4348.1,0.5138]
[1757542936325,0.7292,4348.2,4348.1,0.9452]
[1757542936522,0.5243,4348.2,4348.1,0.9452]
[1757542939731,0.7292,4348.2,4348.1,0.9452]
[1757542940233,0.7292,4348.2,4348.1,0.4385]
[1757542940434,0.7292,4348.2,4348.1,0.231]
[1757542941129,0.848,4348.0,4347.9,0.2075]
[1757542941320,0.848,4348.0,4347.9,0.4385]
[1757542941833,0.848,4348.0,4347.9,0.7448]
[1757542945533,0.848,4348.0,4347.9,0.2075]
[1757542945738,0.848,4348.0,4347.9,0.4385]
[1757542946435,1.26187,4348.0,4347.6,0.3063]
[1757542946643,0.7292,4347.8,4347.7,0.4385]
[1757542947137,0.7292,4347.8,4347.7,0.231]
[1757542948031,0.4117,4346.7,4346.6,0.3137]
[1757542948338,0.4117,4346.7,4346.6,0.231]
[1757542948836,0.7289,4346.7,4346.6,0.231]
[1757542958448,0.7289,4346.7,4346.6,0.9773]
[1757542958634,0.5152,4346.7,4346.6,0.9773]
[1757542959239,0.3172,4347.4,4346.8,0.4326]
[1757542959438,0.92913,4347.3,4347.2,0.7463]
[1757542959642,1.14283,4347.3,4347.2,0.7463]
[1757542960044,0.4139,4347.6,4347.2,0.7463]
[1757542960347,0.5152,4347.4,4347.3,0.7463]
[1757542960743,0.7289,4347.4,4347.3,0.7463]
[1757542961552,0.7289,4347.4,4347.3,0.4326]
[1757542961853,0.7289,4347.4,4347.3,0.2152]
[1757542967858,0.7289,4347.4,4347.3,0.5289]
[1757542968167,0.7289,4347.4,4347.3,0.7463]
[1757542969869,0.7289,4347.4,4347.3,0.4326]
[1757542970971,1.14282,4347.4,4347.3,0.4326]
[1757542971268,1.14282,4347.4,4347.3,0.2152]
[1757542972670,1.14285,4347.1,4347.0,0.231]
[1757542972972,0.41398,4346.8,4346.7,0.3137]
[1757542973172,0.7312,4346.7,4346.6,0.2152]
[1757542973473,1.1429,4346.7,4346.6,0.5289]
[1757542973673,1.1429,4346.7,4346.6,0.7463]
[1757542974665,1.1429,4346.7,4346.3,0.231]
[1757542974666,0.3172,4346.6,4346.3,0.95872]
[1757542974872,0.7289,4346.4,4346.3,0.7599]
[1757542975174,0.7289,4346.4,4346.3,0.9773]
[1757542977277,0.7289,4346.4,4346.3,0.6636]
[1757542977874,0.7289,4346.4,4346.3,0.6636]
[1757542978267,0.7289,4346.4,4346.3,0.9892]
[1757542978770,0.9589,4346.4,4346.3,0.9892]
[1757542980876,0.9589,4346.4,4346.3,0.4462]
[1757542981863,0.9589,4346.4,4346.3,0.7718]
[1757542982266,0.9589,4346.4,4346.3,0.978]
[1757542982774,1.37292,4346.4,4346.3,0.978]
[1757542983278,0.23,4346.4,4346.3,1.39203]
[1757542983576,0.7682,4346.4,4346.3,0.978]
[1757542983777,0.9741,4346.4,4346.3,0.978]
[1757542984368,0.23,4346.4,4346.3,0.978]
[1757542986874,0.23,4346.4,4346.3,3.91325196]
[1757542988773,0.9741,4346.4,4346.3,3.91325196]
[1757542990277,0.7682,4346.4,4346.3,3.91325196]
[1757542991980,0.9741,4346.4,4346.3,3.91325196]
[1757542992784,0.9741,4346.4,4346.3,0.978]
[1757542995185,0.9741,4346.4,4345.8,0.7454]
[1757542995186,0.7441,4345.9,4345.8,0.7454]
[1757542995379,0.7441,4345.9,4345.8,0.9764]
[1757542995585,0.7441,4345.9,4345.8,3.95636197]
[1757542995786,0.5382,4345.9,4345.8,3.95636197]
[1757542995985,0.1285,4346.0,4345.9,0.5392]
[1757542996289,0.8726,4346.0,4345.9,0.9764]
[1757542996587,0.8726,4346.0,4345.7,0.04004435]
[1757542996588,0.41406,4345.9,4345.7,0.04004435]
[1757542996785,0.41406,4345.9,4345.7,0.7454]
[1757542996786,0.7441,4345.8,4345.7,0.7454]
[1757542997082,0.7441,4345.8,4345.7,0.9764]
[1757542997281,1.1582,4345.6,4345.5,0.3256]
[1757542997479,1.1582,4345.6,4345.5,0.5566]
[1757542997678,0.1285,4345.5,4345.4,33.127]
[1757542997987,1.15821,4345.4,4345.3,0.231]
[1757542998994,1.15821,4345.4,4345.3,0.4446]
[1757542999291,1.15821,4345.4,4345.3,0.9764]
[1757542999986,1.15821,4345.4,4345.3,0.4446]
[1757543000186,0.7441,4345.4,4345.3,0.9764]
[1757543001489,0.41414,4345.2,4344.8,0.3256]
[1757543001693,1.15824,4345.2,4345.1,0.2136]
[1757543001886,0.1285,4345.5,4344.6,2.89318888]
[1757543001887,0.41418,4344.7,4344.6,2.89318888]
[1757543002089,1.15832,4344.3,4344.2,3.43238888]
[1757543002594,1.15832,4344.3,4344.2,0.4456]
[1757543002797,0.8726,4344.0,4343.9,0.2136]
[1757543002987,0.7441,4343.7,4343.6,0.5318]
[1757543003293,0.7441,4343.7,4343.6,0.9774]
[1757543003893,0.1285,4344.0,4343.6,0.9774]
[1757543004090,0.3207,4343.9,4343.8,0.7454]
[1757543004396,0.7441,4343.9,4343.8,0.7454]
[1757543004894,0.2301,4344.3,4343.8,0.4198]
[1757543005202,0.7441,4344.2,4344.1,0.7454]
[1757543005397,0.41426,4343.9,4343.2,0.41432]
[1757543005591,0.41426,4343.9,4343.0,0.1189]
[1757543005592,0.5382,4343.8,4343.7,0.7454]
[1757543005792,0.5382,4343.8,4343.7,0.9774]
[1757543006093,0.3207,4344.2,4344.1,0.7454]
[1757543006299,0.3207,4344.2,4344.1,0.9774]
[1757543006300,0.7441,4344.2,4344.1,0.9774]
[1757543007594,0.2301,4344.3,4344.2,0.419]
[1757543007900,0.2301,4344.3,4344.2,0.9635]
[1757543009299,0.2301,4344.3,4344.2,8.00024375]
[1757543011596,0.9539,4344.3,4344.2,0.419]
[1757543011803,0.9539,4344.3,4344.2,0.196]
[1757543012005,0.9539,4344.3,4344.2,0.9275]
[1757543012400,0.9539,4344.3,4344.2,0.4094]
[1757543014208,0.5079,4343.6,4343.5,0.419]
[1757543014511,0.5079,4343.6,4343.5,3.61530298]
[1757543014705,0.5079,4343.9,4343.8,1.14576]
[1757543015004,0.5079,4343.9,4343.8,1.37876]
[1757543015701,0.5079,4344.2,4343.9,0.3125]
[1757543015904,0.5079,4344.2,4344.1,0.7315]
[1757543016600,0.2301,4344.3,4344.2,0.7315]
[1757543018596,0.2301,4344.3,4344.2,0.3125]
[1757543018906,0.9539,4344.3,4344.2,0.233]
[1757543019109,0.9539,4344.3,4344.2,0.4464]
[1757543019609,0.9539,4344.3,4344.2,0.7589]
[1757543019805,0.9539,4344.3,4344.2,0.5259]
[1757543020004,0.9539,4344.3,4344.2,0.7589]
[1757543020709,0.9539,4344.3,4344.2,0.4464]
[1757543021509,0.9539,4344.3,4343.9,0.72675]
[1757543021510,0.5428,4344.0,4343.9,0.2134]
[1757543021808,0.851,4344.0,4343.9,0.4464]
[1757543023110,1.0812,4344.0,4343.9,0.4464]
[1757543026509,1.0812,4344.0,4343.9,0.7589]
[1757543028515,1.0812,4344.0,4343.9,0.9645]
[1757543032820,1.0812,4344.0,4343.9,0.4464]
[1757543033012,0.7238,4343.8,4343.7,2.89318888]
[1757543033324,1.13807,4343.7,4343.6,2.89318888]
[1757543033508,1.13807,4343.7,4343.6,3.12518888]
[1757543033713,1.13807,4343.7,4343.6,0.232]
[1757543037024,0.7238,4343.7,4343.6,0.232]
[1757543037215,0.7238,4343.7,4343.6,0.442]
[1757543037414,0.5079,4343.7,4343.6,0.973]
[1757543037721,0.5042,4343.7,4343.6,0.973]
[1757543038817,0.77165,4344.0,4343.6,0.973]
[1757543039024,0.5044,4343.9,4343.8,0.4133]
[1757543039322,0.5044,4343.9,4343.8,0.741]
[1757543039521,0.7084,4343.9,4343.8,0.741]
[1757543039721,0.7084,4343.9,4343.8,0.5377]
[1757543039924,0.7084,4343.9,4343.8,0.741]
[1757543042030,0.7084,4343.9,4343.8,0.4133]
[1757543043027,0.7084,4343.9,4343.8,0.21]
[1757543045127,0.7084,4343.9,4343.8,0.741]
[1757543045326,0.5044,4343.9,4343.8,0.741]
[1757543047430,0.7346,4343.9,4343.8,0.741]
[1757543048530,0.2302,4343.9,4343.8,0.741]
[1757543049023,1.35286,4343.9,4343.8,0.4133]
[1757543050021,0.9386,4343.9,4343.8,0.741]
[1757543057131,0.64446,4343.9,4343.7,0.741]
[1757543057335,0.7346,4343.9,4343.8,0.973]
[1757543058535,0.9386,4343.9,4343.8,0.6453]
[1757543058835,0.9386,4343.9,4343.8,0.442]
[1757543059438,0.9386,4343.9,4343.8,0.973]
[1757543062527,0.7084,4343.6,4343.5,0.21]
[1757543062732,0.7084,4343.6,4343.5,0.442]
[1757543063343,0.7084,4343.6,4343.5,0.7697]
[1757543063541,0.7084,4343.6,4343.5,0.973]
[1757543064042,0.7084,4343.6,4343.5,3.86618888]
[1757543064233,0.5044,4343.6,4343.5,3.98728888]
[1757543064435,0.5044,4343.6,4343.5,1.0941]
[1757543065141,0.5044,4343.6,4343.5,3.98728888]
[1757543065742,0.41427,4343.8,4343.5,3.98728888]
[1757543065939,1.03554,4344.4,4343.5,3.98728888]
[1757543065940,1.12261,4344.4,4344.3,0.4133]
[1757543066145,1.12261,4344.4,4344.3,0.6453]
[1757543067336,0.7084,4344.4,4344.3,0.6453]
[1757543067536,0.3232,4344.8,4344.3,4.29781053]
[1757543067737,0.7471,4344.8,4344.7,0.2135]
[1757543067938,0.7471,4344.8,4344.7,0.4455]
[1757543068936,0.7471,4344.8,4344.7,0.6592]
[1757543069336,0.3232,4344.8,4344.7,3.90868393]
[1757543071948,0.3232,4344.9,4344.7,4.02506393]
[1757543072149,0.3232,4344.9,4344.8,0.725]
[1757543072351,0.5294,4344.9,4344.8,0.725]
[1757543072551,0.5294,4344.9,4344.8,3.75225424]
[1757543076755,0.3232,4344.9,4344.8,3.75225424]
[1757543083659,0.41414,4345.1,4345.0,0.725]
[1757543083851,0.62034,4345.1,4345.0,0.957]
[1757543084047,0.4239,4344.8,4344.1,2.89318888]
[1757543084360,0.7471,4344.2,4344.1,3.10668888]
[1757543084555,0.7471,4344.2,4344.1,0.4455]
[1757543090557,0.7471,4344.2,4344.1,0.232]
[1757543092363,0.7471,4344.2,4344.1,0.4455]
[1757543093964,0.3232,4344.1,4344.0,36.04018888]
[1757543094164,0.3232,4344.1,4344.0,33.379]
[1757543095162,0.3232,4344.1,4344.0,33.6768]
[1757543097660,0.3393,4344.5,4344.4,0.4254]
[1757543097858,0.8742,4344.5,4344.4,0.6574]
[1757543098361,0.5316,4344.5,4344.4,0.9608]
[1757543100166,0.6612,4344.5,4344.4,0.9608]
[1757543101272,0.8775,4344.5,4344.4,0.6574]
[1757543101567,0.8775,4344.5,4344.4,0.232]
[1757543101869,0.7479,4344.1,4344.0,33.147]
[1757543102076,0.7479,4344.1,4344.0,33.379]
[1757543104471,0.7479,4344.1,4344.0,0.232]
[1757543105573,0.7479,4344.1,4344.0,0.4392]
[1757543112169,0.7479,4343.9,4343.8,2.89318888]
[1757543112368,0.7479,4343.9,4343.8,3.12518888]
[1757543112670,0.7479,4343.9,4343.8,0.4392]
[1757543114376,0.7479,4343.9,4343.8,3.33238888]
[1757543115979,0.7479,4343.9,4343.8,0.4392]
[1757543116678,0.7479,4343.9,4343.8,0.6511]
[1757543116877,0.7479,4343.9,4343.8,0.9545]
[1757543117366,0.7479,4343.9,4343.8,0.6511]
[1757543117571,0.7479,4343.9,4343.8,0.4392]
[1757543117880,0.7479,4343.9,4343.8,0.85346]
[1757543118275,0.7479,4343.9,4343.8,1.06536]
[1757543118579,0.7479,4343.9,4343.8,1.36876]
[1757543118779,0.7479,4343.9,4343.8,4.26194888]
[1757543120577,0.3186,4343.9,4343.8,4.26194888]
[1757543121071,0.7479,4344.4,4344.3,0.4191]
[1757543121276,0.5316,4344.4,4344.3,0.9545]
[1757543122277,0.3186,4344.4,4344.3,0.9545]
[1757543122681,0.3186,4344.6,4344.5,0.4191]
[1757543122986,0.3186,4344.6,4344.5,0.9545]
[1757543124084,0.73279,4344.6,4344.5,0.9545]
[1757543124388,0.94579,4344.6,4344.5,0.9545]
[1757543127291,0.5316,4344.6,4344.5,0.9545]
[1757543127490,1.03531,4345.4,4344.5,0.9545]
[1757543127491,0.3179,4344.9,4344.7,0.41418]
[1757543127690,0.4141,4345.6,4345.4,0.206]
[1757543127691,1.08745,4345.5,4345.4,0.206]
[1757543127883,1.08745,4345.5,4345.4,0.438]
[1757543128896,0.8573,4345.5,4345.4,0.438]
[1757543130297,0.8573,4345.5,4345.4,0.232]
[1757543132100,0.6426,4345.0,4344.9,1.13226]
[1757543132299,0.6426,4345.0,4344.9,1.36026]
[1757543132599,1.05675,4345.0,4344.9,0.9461]
[1757543133408,1.05675,4345.0,4344.9,0.9501]
[1757543142613,1.26265,4345.0,4344.9,0.9501]
[1757543149519,1.26265,4345.0,4344.9,0.6362]
[1757543152313,0.8485,4344.5,4344.4,3.09918888]
[1757543152514,1.2627,4344.5,4344.4,3.33118888]
[1757543152813,1.2627,4344.5,4344.4,6.57307592]
[1757543153213,1.2627,4344.5,4344.4,6.88697592]
[1757543154619,0.8485,4344.5,4344.4,6.88697592]
[1757543154810,0.6426,4344.5,4344.4,6.88697592]
[1757543155009,0.1197,4345.0,4344.4,3.99378704]
[1757543155316,1.26265,4345.0,4344.9,0.4042]
[1757543155516,1.26265,4345.0,4344.9,0.6362]
[1757543157524,1.26265,4345.0,4344.9,0.95]
[1757543157817,1.26265,4345.0,4344.9,0.6362]
[1757543158521,1.26265,4345.0,4344.9,0.95]
[1757543160524,1.26265,4345.0,4344.9,0.6362]
[1757543163523,1.26265,4345.0,4344.9,0.438]
[1757543172424,0.5229,4345.0,4344.9,1.36886]
[1757543172625,0.41414,4345.2,4345.1,0.7365]
[1757543172821,1.26532,4345.8,4345.1,0.7365]
[1757543173028,0.41409,4345.7,4345.5,0.8628]
[1757543173234,0.41408,4345.8,4345.7,0.3214]
[1757543173441,0.41406,4346.0,4345.7,0.7365]
[1757543173628,0.41406,4346.0,4345.8,0.3214]
[1757543173933,0.63106,4346.0,4345.9,0.7365]
[1757543174927,0.217,4346.0,4345.9,0.7365]
[1757543175129,0.63104,4346.2,4346.1,0.7365]
[1757543175332,0.63104,4346.2,4346.1,0.9675]
[1757543181442,0.41404,4346.2,4346.1,0.9675]
[1757543181738,0.63104,4346.2,4346.1,0.9675]
[1757543190748,1.14624,4346.2,4346.1,0.9675]
[1757543190949,1.14624,4346.2,4346.1,0.7646]
[1757543191241,1.14624,4346.2,4346.1,0.9763]
[1757543191549,0.84574,4346.2,4346.1,0.9763]
[1757543193953,1.14624,4346.2,4346.1,0.9763]
[1757543194452,0.84574,4346.2,4346.1,0.9763]
[1757543199153,1.14624,4346.2,4346.1,0.9763]
[1757543200054,0.84574,4346.2,4346.1,0.9763]
[1757543215765,1.14624,4346.2,4346.1,0.9763]
[1757543216066,0.84574,4346.2,4346.1,0.9763]
[1757543217670,0.3115,4346.7,4346.1,3.69098737]
[1757543217861,0.6166,4346.6,4346.5,0.8487]
[1757543218160,0.6166,4346.6,4346.5,1.0797]
[1757543220868,0.835,4346.6,4346.5,1.0797]
[1757543221165,1.1465,4346.6,4346.5,1.0797]
[1757543222069,1.1465,4346.6,4346.5,0.8705]
[1757543223769,0.835,4346.6,4346.5,1.0797]
[1757543224069,1.1465,4346.6,4346.5,1.0797]
[1757543224271,1.1465,4346.6,4346.5,0.7456]
[1757543227272,1.1465,4346.6,4346.5,0.8705]
[1757543232066,1.1465,4346.6,4346.5,0.7456]
[1757543232267,1.1465,4346.6,4346.5,0.5453]
[1757543232777,1.26865,4346.0,4345.9,2.89575459]
[1757543232965,1.26865,4346.0,4345.9,0.231]
[1757543233673,1.14666,4344.9,4344.8,4.3161395]
[1757543233863,1.14666,4344.9,4344.8,0.2003]
[1757543234068,1.14666,4344.9,4344.8,0.4313]
[1757543234376,0.92832,4344.3,4344.2,5.76009136]
[1757543234576,0.92832,4344.3,4344.2,0.9548]
[1757543234772,1.14672,4344.3,4344.2,3.70000736]
[1757543235072,0.41424,4344.1,4344.0,33.128]
[1757543235275,0.72574,4344.1,4344.0,33.359]
[1757543235778,0.72574,4344.1,4344.0,33.6733]
[1757543240274,0.2301,4344.3,4344.0,33.7982]
[1757543240475,0.1221,4345.5,4344.2,0.7238]
[1757543240779,0.41416,4344.9,4344.8,0.7238]
[1757543241075,0.92826,4344.9,4344.8,0.9548]
[1757543241274,1.14666,4344.9,4344.8,0.9548]
[1757543243578,1.14666,4344.9,4344.8,0.4313]
[1757543243879,1.14672,4344.3,4344.2,0.7238]
[1757543244179,1.14672,4344.3,4344.2,0.9548]
[1757543244570,1.14672,4344.3,4344.2,0.7238]
[1757543244867,1.14672,4344.3,4344.2,0.4313]
[1757543245063,0.7325,4344.3,4344.0,33.128]
[1757543245269,0.72574,4344.1,4344.0,33.128]
[1757543245572,0.72574,4344.1,4344.0,33.359]
[1757543245773,0.72574,4344.1,4344.0,33.6733]
[1757543246477,0.72574,4344.1,4344.0,33.4423]
[1757543246681,0.72574,4344.1,4344.0,33.6733]
[1757543247075,0.4272,4344.8,4344.4,0.3265]
[1757543247374,0.84141,4344.4,4344.3,0.2022]
[1757543247575,1.16211,4344.4,4344.3,0.4332]
[1757543247879,0.94681,4344.4,4344.3,0.9754]
[1757543248081,0.62611,4344.4,4344.3,0.9754]
[1757543248384,0.94681,4344.4,4344.3,0.9754]
[1757543248768,1.16211,4344.4,4344.3,0.9754]
[1757543250375,0.1221,4345.0,4344.3,0.6489]
[1757543250680,1.16205,4345.0,4344.9,0.7444]
[1757543250875,1.16205,4345.0,4344.9,0.9764]
[1757543251979,1.28205,4345.0,4344.9,0.4342]
[1757543254083,1.28205,4345.0,4344.9,0.7607]
[1757543254280,1.28205,4345.0,4344.9,0.4342]
[1757543254676,0.41415,4345.0,4344.9,0.9764]
[1757543254883,0.94675,4345.0,4344.9,0.9764]
[1757543255286,0.2119,4345.0,4344.9,0.9764]
[1757543255486,0.41413,4345.2,4345.1,0.7444]
[1757543255783,0.3207,4345.6,4345.4,0.41411]
[1757543255989,1.16192,4346.4,4346.3,0.5287]
[1757543256287,1.16192,4346.4,4346.3,0.9764]
[1757543257986,0.414,4346.6,4346.5,0.1224]
[1757543258287,0.414,4346.6,4346.5,0.8668]
[1757543258288,0.6259,4346.6,4346.5,0.8668]
[1757543258492,0.9466,4346.6,4346.5,0.8668]
[1757543260184,0.414,4346.6,4346.5,0.8668]
[1757543262989,1.03486,4347.3,4346.5,0.8668]
[1757543262990,0.94653,4347.3,4347.2,0.4179]
[1757543263195,0.94653,4347.3,4347.2,0.9764]
[1757543263493,1.16183,4347.3,4347.2,0.9764]
[1757543266405,0.41393,4347.3,4347.2,0.9764]
[1757543266797,0.62583,4347.3,4347.2,0.9764]
[1757543267297,0.94653,4347.3,4347.2,0.9764]
[1757543267798,0.4272,4346.9,4346.8,0.5287]
[1757543268104,1.16187,4346.9,4346.8,0.4342]
[1757543268704,1.16187,4346.9,4346.8,0.7607]
[1757543269099,1.16187,4346.9,4346.8,0.4342]
[1757543269500,1.16187,4346.9,4346.8,0.9764]
[1757543270703,1.16187,4346.9,4346.8,0.7444]
[1757543270899,1.16187,4346.9,4346.8,0.4342]
[1757543271605,1.16187,4346.9,4346.8,0.7607]
[1757543273501,1.16187,4346.9,4346.8,0.5287]
[1757543273704,1.16187,4346.9,4346.8,0.7607]
[1757543275109,1.16187,4346.9,4346.8,0.232]
[1757543277603,1.16187,4346.9,4346.8,0.7425]
[1757543277912,1.16187,4346.9,4346.8,0.9517]
[1757543280710,0.41397,4346.9,4346.8,0.9517]
[1757543281416,0.94327,4346.9,4346.8,0.9517]
[1757543282413,1.15657,4346.9,4346.8,0.9517]
[1757543283408,1.15657,4346.9,4346.8,0.7197]
[1757543285223,1.15658,4346.8,4346.7,0.231]
[1757543285904,1.15658,4346.8,4346.7,0.434]
[1757543286111,1.15658,4346.8,4346.7,0.7423]
[1757543286722,1.15658,4346.8,4346.7,0.9515]
[1757543288020,1.15658,4346.8,4346.7,0.7205]
[1757543288219,1.15658,4346.8,4346.7,0.9515]
[1757543295723,1.15663,4346.3,4346.2,0.7205]
[1757543295918,1.15663,4346.3,4346.2,0.9515]
[1757543301321,1.15663,4346.3,4345.6,33.138]
[1757543301322,1.15667,4345.8,4345.7,0.4122]
[1757543301525,0.99082152,4345.8,4345.7,0.6432]
[1757543302031,0.99082152,4345.8,4345.7,0.9515]
[1757543303126,0.66952152,4345.8,4345.7,0.7205]
[1757543303329,0.66952152,4345.8,4345.7,0.9515]
[1757543306430,0.95542152,4345.8,4345.7,0.3083]
[1757543306630,0.95542152,4345.8,4345.7,0.7423]
[1757543306842,0.66952152,4345.8,4345.7,0.9515]
[1757543307133,0.41403,4346.3,4346.1,0.7386]
[1757543307333,0.41403,4346.3,4346.2,0.9696]
[1757543308927,0.63203,4346.3,4346.2,0.9696]
[1757543309123,1.12453,4346.3,4346.2,0.5408]
[1757543309733,1.12453,4346.3,4346.2,0.756]
[1757543311539,1.12453,4346.3,4346.2,0.525]
[1757543311739,1.12453,4346.3,4346.2,0.756]
[1757543313038,0.83853,4346.3,4346.2,0.9696]
[1757543313241,1.12453,4346.3,4346.2,0.9696]
[1757543314940,0.83853,4346.3,4346.2,0.9696]
[1757543325548,0.41403,4346.3,4346.2,0.9696]
[1757543325748,0.218,4347.1,4347.0,0.1302]
[1757543325955,0.63195,4347.1,4347.0,0.8688]
[1757543328954,0.83845,4347.1,4347.0,0.8688]
[1757543332249,0.41395,4347.1,4347.0,0.8688]
[1757543337145,1.12165,4347.1,4347.0,1.0998]
[1757543337759,1.12165,4347.1,4347.0,0.3098]
[1757543337953,1.12165,4347.1,4346.9,0.538]
[1757543338144,1.115,4346.6,4346.5,0.8832]
[1757543338447,1.115,4346.6,4346.5,0.8842]
[1757543341748,1.115,4346.6,4346.5,0.6522]
[1757543341954,1.115,4346.6,4346.5,0.8842]
[1757543344056,1.115,4346.6,4346.5,0.6522]
[1757543344251,1.14925,4346.1,4346.0,0.215]
[1757543344445,1.14925,4346.1,4346.0,0.447]
[1757543345450,0.41409,4345.6,4345.5,33.2484]
[1757543345658,0.73399,4345.6,4345.5,33.4804]
[1757543346156,0.41409,4345.6,4345.5,33.7874]
[1757543350865,0.41408,4345.8,4345.6,0.307]
[1757543351051,0.94523,4346.3,4346.2,0.7299]
[1757543351250,0.94523,4346.3,4346.2,0.9619]
[1757543352357,0.62533,4346.3,4346.2,0.9619]
[1757543353054,0.94523,4346.3,4346.2,0.9619]
[1757543353257,1.14923,4346.3,4346.2,0.9619]
[1757543362561,0.3199,4346.6,4346.2,0.9619]
[1757543362762,0.5312,4346.6,4346.5,0.8501]
[1757543363064,0.9452,4346.6,4346.5,0.8501]
[1757543363260,1.1492,4346.6,4346.5,0.8501]
[1757543363757,1.1492,4346.6,4346.5,0.7299]
[1757543369663,0.6253,4346.6,4346.5,1.26401]
[1757543369964,0.6253,4346.6,4346.5,0.85]
[1757543372864,0.9234,4346.6,4346.5,0.85]
[1757543377471,0.6253,4346.6,4346.5,0.85]
[1757543377767,0.9234,4346.6,4346.5,0.85]
[1757543381766,0.6253,4346.6,4346.5,0.85]
[1757543382174,0.9234,4346.6,4346.5,0.85]
[1757543382570,0.2113,4346.6,4346.5,1.26401]
[1757543382871,1.15481,4347.5,4347.2,0.5133]
[1757543382872,1.13113,4347.3,4347.2,0.5133]
[1757543383771,1.13113,4347.3,4347.2,0.2089]
[1757543383971,0.4191,4347.1,4347.0,0.2089]
[1757543384174,0.7172,4347.1,4347.0,0.5133]
[1757543384371,1.13115,4347.1,4347.0,0.5133]
[1757543389079,1.13115,4347.1,4347.0,0.7225]
[1757543397585,1.13115,4347.1,4347.0,0.8478]
[1757543397786,1.13115,4347.1,4347.0,0.7225]
[1757543399684,1.13115,4347.1,4347.0,0.3044]
[1757543399886,1.13115,4347.1,4347.0,0.5127]
[1757543400188,0.41395,4347.1,4347.0,0.8433]
[1757543400389,1.13425,4347.1,4347.0,0.5127]
[1757543400588,0.4241,4346.9,4346.8,0.3042]
[1757543400782,1.13427,4346.9,4346.8,0.5352]
[1757543401084,0.91977,4346.9,4346.8,0.9488]
[1757543401290,0.62357,4346.9,4346.8,0.9488]
[1757543401489,0.91977,4346.9,4346.8,0.9488]
[1757543401688,1.13427,4346.9,4346.8,0.9488]
[1757543401888,0.91977,4346.9,4346.8,0.9488]
[1757543402094,0.62357,4346.9,4346.8,0.9488]
[1757543403189,0.91977,4346.9,4346.8,0.9488]
[1757543404195,1.13427,4346.9,4346.8,0.9488]
[1757543415693,1.13427,4346.9,4346.8,0.7178]
[1757543416000,1.13427,4346.9,4346.8,0.9488]
[1757543421803,0.41397,4346.9,4346.8,0.9488]
[1757543422102,0.41396,4347.1,4347.0,0.8431]
[1757543424107,0.62356,4347.1,4347.0,0.8431]
[1757543426413,0.91976,4347.1,4347.0,0.8431]
[1757543427305,0.62356,4347.1,4347.0,0.8431]